Workbook

Sheet Planilha cálculo empréstimo
A1: Planilha de cálculo com pagamentos extras
D3: Inserir valores | F3: Instruções
A4: Valor do empréstimo | D4: R$10,000.00 | F4: Deve ser entre 1 e 30 anos.
A5: Taxa anual de juros | D5: 10.000% | F5: Se houver variações nos pagamentos extras, insira-as na tabela a seguir.
A6: Período do empréstimo em anos | D6: 100
A7: Data de início do empréstimo | D7: 1900-01-10
A8: Pagamentos extras opcionais | D8: R$10.00
A11: Pagamento mensal programado | D11: =IF(Values_Entered,-PMT(Interest_Rate/12,Loan_Years*12,Loan_Amount),"") -> R$83.34
A12: Número de pagamentos programados | D12: =IF(Values_Entered,Loan_Years*12,"") -> 1200
A13: Número de pagamentos reais | D13: =IF(Values_Entered,Number_of_Payments,"") -> 270
A14: Total de pagamentos antecipados | D14: =IF(Values_Entered,SUMIF(Beg_Bal,">0",Extra_Pay),"") -> R$2,700.00
A15: Juros total | D15: =IF(Values_Entered,SUMIF(Beg_Bal,">0",Int),"") -> R$15,117.46
A17: Nº. | B17: Data do pagamento | C17: Saldo Inicial | D17: Pagamento programado | E17: Pagamento extra | F17: Pagamento total | G17: Principal | H17: Juros | I17: Saldo final
A18: =IF(Values_Entered,1,"") -> 1 | B18: =IF(Pay_Num<>"",Loan_Start,"") -> 1900-01-10 | C18: =IF(Values_Entered,Loan_Amount,"") -> R$10,000.00 | D18: =IF(Pay_Num<>"",Scheduled_Monthly_Payment,"") -> R$83.34 | E18: =IF(Pay_Num<>"",Scheduled_Extra_Payments,"") -> R$10.00 | F18: =IF(Pay_Num<>"",Sched_Pay+Extra_Pay,"") -> R$93.34 | G18: =IF(Pay_Num<>"",Total_Pay-Int,"") -> R$10.00 | H18: =IF(Pay_Num<>"",Beg_Bal*Interest_Rate/12,"") -> R$83.33 | I18: =IF(Pay_Num<>"",Beg_Bal-Princ,"") -> R$9,990.00
A19: =IF(Values_Entered,A18+1,"") -> 2 | B19: =IF(Pay_Num<>"",DATE(YEAR(B18),MONTH(B18)+1,DAY(B18)),"") -> 1900-02-10 | C19: =IF(Pay_Num<>"",I18,"") -> R$9,990.00 | D19: R$83.34 | E19: R$10.00 | F19: R$93.34 | G19: R$10.09 | H19: R$83.25 | I19: R$9,979.91
A20: 3 | B20: 1900-03-10 | C20: R$9,979.91 | D20: R$83.34 | E20: R$10.00 | F20: R$93.34 | G20: R$10.17 | H20: R$83.17 | I20: R$9,969.74
A21: 4 | B21: 1900-04-10 | C21: R$9,969.74 | D21: R$83.34 | E21: R$10.00 | F21: R$93.34 | G21: R$10.26 | H21: R$83.08 | I21: R$9,959.48
A22: 5 | B22: 1900-05-10 | C22: R$9,959.48 | D22: R$83.34 | E22: R$10.00 | F22: R$93.34 | G22: R$10.34 | H22: R$83.00 | I22: R$9,949.14
A23: 6 | B23: 1900-06-10 | C23: R$9,949.14 | D23: R$83.34 | E23: R$10.00 | F23: R$93.34 | G23: R$10.43 | H23: R$82.91 | I23: R$9,938.71
A24: 7 | B24: 1900-07-10 | C24: R$9,938.71 | D24: R$83.34 | E24: R$10.00 | F24: R$93.34 | G24: R$10.51 | H24: R$82.82 | I24: R$9,928.20
A25: 8 | B25: 1900-08-10 | C25: R$9,928.20 | D25: R$83.34 | E25: R$10.00 | F25: R$93.34 | G25: R$10.60 | H25: R$82.73 | I25: R$9,917.59
A26: 9 | B26: 1900-09-10 | C26: R$9,917.59 | D26: R$83.34 | E26: R$10.00 | F26: R$93.34 | G26: R$10.69 | H26: R$82.65 | I26: R$9,906.90
A27: 10 | B27: 1900-10-10 | C27: R$9,906.90 | D27: R$83.34 | E27: R$10.00 | F27: R$93.34 | G27: R$10.78 | H27: R$82.56 | I27: R$9,896.12
A28: 11 | B28: 1900-11-10 | C28: R$9,896.12 | D28: R$83.34 | E28: R$10.00 | F28: R$93.34 | G28: R$10.87 | H28: R$82.47 | I28: R$9,885.25
A29: 12 | B29: 1900-12-10 | C29: R$9,885.25 | D29: R$83.34 | E29: R$10.00 | F29: R$93.34 | G29: R$10.96 | H29: R$82.38 | I29: R$9,874.29
A30: 13 | B30: 1901-01-10 | C30: R$9,874.29 | D30: R$83.34 | E30: R$10.00 | F30: R$93.34 | G30: R$11.05 | H30: R$82.29 | I30: R$9,863.24
A31: 14 | B31: 1901-02-10 | C31: R$9,863.24 | D31: R$83.34 | E31: R$10.00 | F31: R$93.34 | G31: R$11.14 | H31: R$82.19 | I31: R$9,852.10
A32: 15 | B32: 1901-03-10 | C32: R$9,852.10 | D32: R$83.34 | E32: R$10.00 | F32: R$93.34 | G32: R$11.24 | H32: R$82.10 | I32: R$9,840.86
A33: 16 | B33: 1901-04-10 | C33: R$9,840.86 | D33: R$83.34 | E33: R$10.00 | F33: R$93.34 | G33: R$11.33 | H33: R$82.01 | I33: R$9,829.53
A34: 17 | B34: 1901-05-10 | C34: R$9,829.53 | D34: R$83.34 | E34: R$10.00 | F34: R$93.34 | G34: R$11.42 | H34: R$81.91 | I34: R$9,818.11
A35: 18 | B35: 1901-06-10 | C35: R$9,818.11 | D35: R$83.34 | E35: R$10.00 | F35: R$93.34 | G35: R$11.52 | H35: R$81.82 | I35: R$9,806.59
A36: 19 | B36: 1901-07-10 | C36: R$9,806.59 | D36: R$83.34 | E36: R$10.00 | F36: R$93.34 | G36: R$11.62 | H36: R$81.72 | I36: R$9,794.97
A37: 20 | B37: 1901-08-10 | C37: R$9,794.97 | D37: R$83.34 | E37: R$10.00 | F37: R$93.34 | G37: R$11.71 | H37: R$81.62 | I37: R$9,783.26
A38: 21 | B38: 1901-09-10 | C38: R$9,783.26 | D38: R$83.34 | E38: R$10.00 | F38: R$93.34 | G38: R$11.81 | H38: R$81.53 | I38: R$9,771.45
A39: 22 | B39: 1901-10-10 | C39: R$9,771.45 | D39: R$83.34 | E39: R$10.00 | F39: R$93.34 | G39: R$11.91 | H39: R$81.43 | I39: R$9,759.54
A40: 23 | B40: 1901-11-10 | C40: R$9,759.54 | D40: R$83.34 | E40: R$10.00 | F40: R$93.34 | G40: R$12.01 | H40: R$81.33 | I40: R$9,747.53
A41: 24 | B41: 1901-12-10 | C41: R$9,747.53 | D41: R$83.34 | E41: R$10.00 | F41: R$93.34 | G41: R$12.11 | H41: R$81.23 | I41: R$9,735.43
A42: 25 | B42: 1902-01-10 | C42: R$9,735.43 | D42: R$83.34 | E42: R$10.00 | F42: R$93.34 | G42: R$12.21 | H42: R$81.13 | I42: R$9,723.22
A43: 26 | B43: 1902-02-10 | C43: R$9,723.22 | D43: R$83.34 | E43: R$10.00 | F43: R$93.34 | G43: R$12.31 | H43: R$81.03 | I43: R$9,710.91
A44: 27 | B44: 1902-03-10 | C44: R$9,710.91 | D44: R$83.34 | E44: R$10.00 | F44: R$93.34 | G44: R$12.41 | H44: R$80.92 | I44: R$9,698.49
A45: 28 | B45: 1902-04-10 | C45: R$9,698.49 | D45: R$83.34 | E45: R$10.00 | F45: R$93.34 | G45: R$12.52 | H45: R$80.82 | I45: R$9,685.98
A46: 29 | B46: 1902-05-10 | C46: R$9,685.98 | D46: R$83.34 | E46: R$10.00 | F46: R$93.34 | G46: R$12.62 | H46: R$80.72 | I46: R$9,673.36
A47: 30 | B47: 1902-06-10 | C47: R$9,673.36 | D47: R$83.34 | E47: R$10.00 | F47: R$93.34 | G47: R$12.73 | H47: R$80.61 | I47: R$9,660.63
A48: 31 | B48: 1902-07-10 | C48: R$9,660.63 | D48: R$83.34 | E48: R$10.00 | F48: R$93.34 | G48: R$12.83 | H48: R$80.51 | I48: R$9,647.80
A49: 32 | B49: 1902-08-10 | C49: R$9,647.80 | D49: R$83.34 | E49: R$10.00 | F49: R$93.34 | G49: R$12.94 | H49: R$80.40 | I49: R$9,634.86
A50: 33 | B50: 1902-09-10 | C50: R$9,634.86 | D50: R$83.34 | E50: R$10.00 | F50: R$93.34 | G50: R$13.05 | H50: R$80.29 | I50: R$9,621.81
A51: 34 | B51: 1902-10-10 | C51: R$9,621.81 | D51: R$83.34 | E51: R$10.00 | F51: R$93.34 | G51: R$13.16 | H51: R$80.18 | I51: R$9,608.66
A52: 35 | B52: 1902-11-10 | C52: R$9,608.66 | D52: R$83.34 | E52: R$10.00 | F52: R$93.34 | G52: R$13.27 | H52: R$80.07 | I52: R$9,595.39
A53: 36 | B53: 1902-12-10 | C53: R$9,595.39 | D53: R$83.34 | E53: R$10.00 | F53: R$93.34 | G53: R$13.38 | H53: R$79.96 | I53: R$9,582.02
A54: 37 | B54: 1903-01-10 | C54: R$9,582.02 | D54: R$83.34 | E54: R$10.00 | F54: R$93.34 | G54: R$13.49 | H54: R$79.85 | I54: R$9,568.53
A55: 38 | B55: 1903-02-10 | C55: R$9,568.53 | D55: R$83.34 | E55: R$10.00 | F55: R$93.34 | G55: R$13.60 | H55: R$79.74 | I55: R$9,554.93
A56: 39 | B56: 1903-03-10 | C56: R$9,554.93 | D56: R$83.34 | E56: R$10.00 | F56: R$93.34 | G56: R$13.71 | H56: R$79.62 | I56: R$9,541.22
A57: 40 | B57: 1903-04-10 | C57: R$9,541.22 | D57: R$83.34 | E57: R$10.00 | F57: R$93.34 | G57: R$13.83 | H57: R$79.51 | I57: R$9,527.39
A58: 41 | B58: 1903-05-10 | C58: R$9,527.39 | D58: R$83.34 | E58: R$10.00 | F58: R$93.34 | G58: R$13.94 | H58: R$79.39 | I58: R$9,513.45
A59: 42 | B59: 1903-06-10 | C59: R$9,513.45 | D59: R$83.34 | E59: R$10.00 | F59: R$93.34 | G59: R$14.06 | H59: R$79.28 | I59: R$9,499.39
A60: 43 | B60: 1903-07-10 | C60: R$9,499.39 | D60: R$83.34 | E60: R$10.00 | F60: R$93.34 | G60: R$14.18 | H60: R$79.16 | I60: R$9,485.21
A61: 44 | B61: 1903-08-10 | C61: R$9,485.21 | D61: R$83.34 | E61: R$10.00 | F61: R$93.34 | G61: R$14.29 | H61: R$79.04 | I61: R$9,470.92
A62: 45 | B62: 1903-09-10 | C62: R$9,470.92 | D62: R$83.34 | E62: R$10.00 | F62: R$93.34 | G62: R$14.41 | H62: R$78.92 | I62: R$9,456.51
A63: 46 | B63: 1903-10-10 | C63: R$9,456.51 | D63: R$83.34 | E63: R$10.00 | F63: R$93.34 | G63: R$14.53 | H63: R$78.80 | I63: R$9,441.97
A64: 47 | B64: 1903-11-10 | C64: R$9,441.97 | D64: R$83.34 | E64: R$10.00 | F64: R$93.34 | G64: R$14.65 | H64: R$78.68 | I64: R$9,427.32
A65: 48 | B65: 1903-12-10 | C65: R$9,427.32 | D65: R$83.34 | E65: R$10.00 | F65: R$93.34 | G65: R$14.78 | H65: R$78.56 | I65: R$9,412.54
A66: 49 | B66: 1904-01-10 | C66: R$9,412.54 | D66: R$83.34 | E66: R$10.00 | F66: R$93.34 | G66: R$14.90 | H66: R$78.44 | I66: R$9,397.64
A67: 50 | B67: 1904-02-10 | C67: R$9,397.64 | D67: R$83.34 | E67: R$10.00 | F67: R$93.34 | G67: R$15.02 | H67: R$78.31 | I67: R$9,382.62
A68: 51 | B68: 1904-03-10 | C68: R$9,382.62 | D68: R$83.34 | E68: R$10.00 | F68: R$93.34 | G68: R$15.15 | H68: R$78.19 | I68: R$9,367.47
A69: 52 | B69: 1904-04-10 | C69: R$9,367.47 | D69: R$83.34 | E69: R$10.00 | F69: R$93.34 | G69: R$15.28 | H69: R$78.06 | I69: R$9,352.20
A70: 53 | B70: 1904-05-10 | C70: R$9,352.20 | D70: R$83.34 | E70: R$10.00 | F70: R$93.34 | G70: R$15.40 | H70: R$77.93 | I70: R$9,336.79
A71: 54 | B71: 1904-06-10 | C71: R$9,336.79 | D71: R$83.34 | E71: R$10.00 | F71: R$93.34 | G71: R$15.53 | H71: R$77.81 | I71: R$9,321.26
A72: 55 | B72: 1904-07-10 | C72: R$9,321.26 | D72: R$83.34 | E72: R$10.00 | F72: R$93.34 | G72: R$15.66 | H72: R$77.68 | I72: R$9,305.60
A73: 56 | B73: 1904-08-10 | C73: R$9,305.60 | D73: R$83.34 | E73: R$10.00 | F73: R$93.34 | G73: R$15.79 | H73: R$77.55 | I73: R$9,289.81
A74: 57 | B74: 1904-09-10 | C74: R$9,289.81 | D74: R$83.34 | E74: R$10.00 | F74: R$93.34 | G74: R$15.92 | H74: R$77.42 | I74: R$9,273.89
A75: 58 | B75: 1904-10-10 | C75: R$9,273.89 | D75: R$83.34 | E75: R$10.00 | F75: R$93.34 | G75: R$16.05 | H75: R$77.28 | I75: R$9,257.84
A76: 59 | B76: 1904-11-10 | C76: R$9,257.84 | D76: R$83.34 | E76: R$10.00 | F76: R$93.34 | G76: R$16.19 | H76: R$77.15 | I76: R$9,241.65
A77: 60 | B77: 1904-12-10 | C77: R$9,241.65 | D77: R$83.34 | E77: R$10.00 | F77: R$93.34 | G77: R$16.32 | H77: R$77.01 | I77: R$9,225.32
A78: 61 | B78: 1905-01-10 | C78: R$9,225.32 | D78: R$83.34 | E78: R$10.00 | F78: R$93.34 | G78: R$16.46 | H78: R$76.88 | I78: R$9,208.86
A79: 62 | B79: 1905-02-10 | C79: R$9,208.86 | D79: R$83.34 | E79: R$10.00 | F79: R$93.34 | G79: R$16.60 | H79: R$76.74 | I79: R$9,192.27
A80: 63 | B80: 1905-03-10 | C80: R$9,192.27 | D80: R$83.34 | E80: R$10.00 | F80: R$93.34 | G80: R$16.74 | H80: R$76.60 | I80: R$9,175.53
A81: 64 | B81: 1905-04-10 | C81: R$9,175.53 | D81: R$83.34 | E81: R$10.00 | F81: R$93.34 | G81: R$16.87 | H81: R$76.46 | I81: R$9,158.66
A82: 65 | B82: 1905-05-10 | C82: R$9,158.66 | D82: =IF(Pay_Num<>"",Scheduled_Monthly_Payment,"") -> R$83.34 | E82: =IF(Pay_Num<>"",Scheduled_Extra_Payments,"") -> R$10.00 | F82: =IF(Pay_Num<>"",Sched_Pay+Extra_Pay,"") -> R$93.34 | G82: =IF(Pay_Num<>"",Total_Pay-Int,"") -> R$17.02 | H82: =IF(Pay_Num<>"",Beg_Bal*Interest_Rate/12,"") -> R$76.32 | I82: =IF(Pay_Num<>"",Beg_Bal-Princ,"") -> R$9,141.64
A83: =IF(Values_Entered,A82+1,"") -> 66 | B83: =IF(Pay_Num<>"",DATE(YEAR(B82),MONTH(B82)+1,DAY(B82)),"") -> 1905-06-10 | C83: =IF(Pay_Num<>"",I82,"") -> R$9,141.64 | D83: R$83.34 | E83: R$10.00 | F83: R$93.34 | G83: R$17.16 | H83: R$76.18 | I83: R$9,124.49
A84: 67 | B84: 1905-07-10 | C84: R$9,124.49 | D84: R$83.34 | E84: R$10.00 | F84: R$93.34 | G84: R$17.30 | H84: R$76.04 | I84: R$9,107.19
A85: 68 | B85: 1905-08-10 | C85: R$9,107.19 | D85: R$83.34 | E85: R$10.00 | F85: R$93.34 | G85: R$17.44 | H85: R$75.89 | I85: R$9,089.74
A86: 69 | B86: 1905-09-10 | C86: R$9,089.74 | D86: R$83.34 | E86: R$10.00 | F86: R$93.34 | G86: R$17.59 | H86: R$75.75 | I86: R$9,072.15
A87: 70 | B87: 1905-10-10 | C87: R$9,072.15 | D87: R$83.34 | E87: R$10.00 | F87: R$93.34 | G87: R$17.74 | H87: R$75.60 | I87: R$9,054.42
A88: 71 | B88: 1905-11-10 | C88: R$9,054.42 | D88: R$83.34 | E88: R$10.00 | F88: R$93.34 | G88: R$17.88 | H88: R$75.45 | I88: R$9,036.53
A89: 72 | B89: 1905-12-10 | C89: R$9,036.53 | D89: R$83.34 | E89: R$10.00 | F89: R$93.34 | G89: R$18.03 | H89: R$75.30 | I89: R$9,018.50
A90: 73 | B90: 1906-01-10 | C90: R$9,018.50 | D90: R$83.34 | E90: R$10.00 | F90: R$93.34 | G90: R$18.18 | H90: R$75.15 | I90: R$9,000.32
A91: 74 | B91: 1906-02-10 | C91: R$9,000.32 | D91: R$83.34 | E91: R$10.00 | F91: R$93.34 | G91: R$18.33 | H91: R$75.00 | I91: R$8,981.98
A92: 75 | B92: 1906-03-10 | C92: R$8,981.98 | D92: R$83.34 | E92: R$10.00 | F92: R$93.34 | G92: R$18.49 | H92: R$74.85 | I92: R$8,963.49
A93: 76 | B93: 1906-04-10 | C93: R$8,963.49 | D93: R$83.34 | E93: R$10.00 | F93: R$93.34 | G93: R$18.64 | H93: R$74.70 | I93: R$8,944.85
A94: 77 | B94: 1906-05-10 | C94: R$8,944.85 | D94: R$83.34 | E94: R$10.00 | F94: R$93.34 | G94: R$18.80 | H94: R$74.54 | I94: R$8,926.06
A95: 78 | B95: 1906-06-10 | C95: R$8,926.06 | D95: R$83.34 | E95: R$10.00 | F95: R$93.34 | G95: R$18.95 | H95: R$74.38 | I95: R$8,907.10
A96: 79 | B96: 1906-07-10 | C96: R$8,907.10 | D96: R$83.34 | E96: R$10.00 | F96: R$93.34 | G96: R$19.11 | H96: R$74.23 | I96: R$8,887.99
A97: 80 | B97: 1906-08-10 | C97: R$8,887.99 | D97: R$83.34 | E97: R$10.00 | F97: R$93.34 | G97: R$19.27 | H97: R$74.07 | I97: R$8,868.72
A98: 81 | B98: 1906-09-10 | C98: R$8,868.72 | D98: R$83.34 | E98: R$10.00 | F98: R$93.34 | G98: R$19.43 | H98: R$73.91 | I98: R$8,849.29
A99: 82 | B99: 1906-10-10 | C99: R$8,849.29 | D99: R$83.34 | E99: R$10.00 | F99: R$93.34 | G99: R$19.59 | H99: R$73.74 | I99: R$8,829.70
A100: 83 | B100: 1906-11-10 | C100: R$8,829.70 | D100: R$83.34 | E100: R$10.00 | F100: R$93.34 | G100: R$19.76 | H100: R$73.58 | I100: R$8,809.94
A101: 84 | B101: 1906-12-10 | C101: R$8,809.94 | D101: R$83.34 | E101: R$10.00 | F101: R$93.34 | G101: R$19.92 | H101: R$73.42 | I101: R$8,790.02
A102: 85 | B102: 1907-01-10 | C102: R$8,790.02 | D102: R$83.34 | E102: R$10.00 | F102: R$93.34 | G102: R$20.09 | H102: R$73.25 | I102: R$8,769.93
A103: 86 | B103: 1907-02-10 | C103: R$8,769.93 | D103: R$83.34 | E103: R$10.00 | F103: R$93.34 | G103: R$20.25 | H103: R$73.08 | I103: R$8,749.68
A104: 87 | B104: 1907-03-10 | C104: R$8,749.68 | D104: R$83.34 | E104: R$10.00 | F104: R$93.34 | G104: R$20.42 | H104: R$72.91 | I104: R$8,729.25
A105: 88 | B105: 1907-04-10 | C105: R$8,729.25 | D105: R$83.34 | E105: R$10.00 | F105: R$93.34 | G105: R$20.59 | H105: R$72.74 | I105: R$8,708.66
A106: 89 | B106: 1907-05-10 | C106: R$8,708.66 | D106: R$83.34 | E106: R$10.00 | F106: R$93.34 | G106: R$20.77 | H106: R$72.57 | I106: R$8,687.90
A107: 90 | B107: 1907-06-10 | C107: R$8,687.90 | D107: R$83.34 | E107: R$10.00 | F107: R$93.34 | G107: R$20.94 | H107: R$72.40 | I107: R$8,666.96
A108: 91 | B108: 1907-07-10 | C108: R$8,666.96 | D108: R$83.34 | E108: R$10.00 | F108: R$93.34 | G108: R$21.11 | H108: R$72.22 | I108: R$8,645.84
A109: 92 | B109: 1907-08-10 | C109: R$8,645.84 | D109: R$83.34 | E109: R$10.00 | F109: R$93.34 | G109: R$21.29 | H109: R$72.05 | I109: R$8,624.56
A110: 93 | B110: 1907-09-10 | C110: R$8,624.56 | D110: R$83.34 | E110: R$10.00 | F110: R$93.34 | G110: R$21.47 | H110: R$71.87 | I110: R$8,603.09
A111: 94 | B111: 1907-10-10 | C111: R$8,603.09 | D111: R$83.34 | E111: R$10.00 | F111: R$93.34 | G111: R$21.64 | H111: R$71.69 | I111: R$8,581.45
A112: 95 | B112: 1907-11-10 | C112: R$8,581.45 | D112: R$83.34 | E112: R$10.00 | F112: R$93.34 | G112: R$21.83 | H112: R$71.51 | I112: R$8,559.62
A113: 96 | B113: 1907-12-10 | C113: R$8,559.62 | D113: R$83.34 | E113: R$10.00 | F113: R$93.34 | G113: R$22.01 | H113: R$71.33 | I113: R$8,537.61
A114: 97 | B114: 1908-01-10 | C114: R$8,537.61 | D114: R$83.34 | E114: R$10.00 | F114: R$93.34 | G114: R$22.19 | H114: R$71.15 | I114: R$8,515.42
A115: 98 | B115: 1908-02-10 | C115: R$8,515.42 | D115: R$83.34 | E115: R$10.00 | F115: R$93.34 | G115: R$22.38 | H115: R$70.96 | I115: R$8,493.05
A116: 99 | B116: 1908-03-10 | C116: R$8,493.05 | D116: R$83.34 | E116: R$10.00 | F116: R$93.34 | G116: R$22.56 | H116: R$70.78 | I116: R$8,470.48
A117: 100 | B117: 1908-04-10 | C117: R$8,470.48 | D117: R$83.34 | E117: R$10.00 | F117: R$93.34 | G117: R$22.75 | H117: R$70.59 | I117: R$8,447.74
A118: 101 | B118: 1908-05-10 | C118: R$8,447.74 | D118: R$83.34 | E118: R$10.00 | F118: R$93.34 | G118: R$22.94 | H118: R$70.40 | I118: R$8,424.80
A119: 102 | B119: 1908-06-10 | C119: R$8,424.80 | D119: R$83.34 | E119: R$10.00 | F119: R$93.34 | G119: R$23.13 | H119: R$70.21 | I119: R$8,401.66
A120: 103 | B120: 1908-07-10 | C120: R$8,401.66 | D120: R$83.34 | E120: R$10.00 | F120: R$93.34 | G120: R$23.32 | H120: R$70.01 | I120: R$8,378.34
A121: 104 | B121: 1908-08-10 | C121: R$8,378.34 | D121: R$83.34 | E121: R$10.00 | F121: R$93.34 | G121: R$23.52 | H121: R$69.82 | I121: R$8,354.82
A122: 105 | B122: 1908-09-10 | C122: R$8,354.82 | D122: R$83.34 | E122: R$10.00 | F122: R$93.34 | G122: R$23.71 | H122: R$69.62 | I122: R$8,331.11
A123: 106 | B123: 1908-10-10 | C123: R$8,331.11 | D123: R$83.34 | E123: R$10.00 | F123: R$93.34 | G123: R$23.91 | H123: R$69.43 | I123: R$8,307.20
A124: 107 | B124: 1908-11-10 | C124: R$8,307.20 | D124: R$83.34 | E124: R$10.00 | F124: R$93.34 | G124: R$24.11 | H124: R$69.23 | I124: R$8,283.09
A125: 108 | B125: 1908-12-10 | C125: R$8,283.09 | D125: R$83.34 | E125: R$10.00 | F125: R$93.34 | G125: R$24.31 | H125: R$69.03 | I125: R$8,258.78
A126: 109 | B126: 1909-01-10 | C126: R$8,258.78 | D126: R$83.34 | E126: R$10.00 | F126: R$93.34 | G126: R$24.51 | H126: R$68.82 | I126: R$8,234.26
A127: 110 | B127: 1909-02-10 | C127: R$8,234.26 | D127: R$83.34 | E127: R$10.00 | F127: R$93.34 | G127: R$24.72 | H127: R$68.62 | I127: R$8,209.54
A128: 111 | B128: 1909-03-10 | C128: R$8,209.54 | D128: R$83.34 | E128: R$10.00 | F128: R$93.34 | G128: R$24.92 | H128: R$68.41 | I128: R$8,184.62
A129: 112 | B129: 1909-04-10 | C129: R$8,184.62 | D129: R$83.34 | E129: R$10.00 | F129: R$93.34 | G129: R$25.13 | H129: R$68.21 | I129: R$8,159.49
A130: 113 | B130: 1909-05-10 | C130: R$8,159.49 | D130: R$83.34 | E130: R$10.00 | F130: R$93.34 | G130: R$25.34 | H130: R$68.00 | I130: R$8,134.15
A131: 114 | B131: 1909-06-10 | C131: R$8,134.15 | D131: R$83.34 | E131: R$10.00 | F131: R$93.34 | G131: R$25.55 | H131: R$67.78 | I131: R$8,108.59
A132: 115 | B132: 1909-07-10 | C132: R$8,108.59 | D132: R$83.34 | E132: R$10.00 | F132: R$93.34 | G132: R$25.77 | H132: R$67.57 | I132: R$8,082.83
A133: 116 | B133: 1909-08-10 | C133: R$8,082.83 | D133: R$83.34 | E133: R$10.00 | F133: R$93.34 | G133: R$25.98 | H133: R$67.36 | I133: R$8,056.85
A134: 117 | B134: 1909-09-10 | C134: R$8,056.85 | D134: R$83.34 | E134: R$10.00 | F134: R$93.34 | G134: R$26.20 | H134: R$67.14 | I134: R$8,030.65
A135: 118 | B135: 1909-10-10 | C135: R$8,030.65 | D135: R$83.34 | E135: R$10.00 | F135: R$93.34 | G135: R$26.42 | H135: R$66.92 | I135: R$8,004.23
A136: 119 | B136: 1909-11-10 | C136: R$8,004.23 | D136: R$83.34 | E136: R$10.00 | F136: R$93.34 | G136: R$26.64 | H136: R$66.70 | I136: R$7,977.60
A137: 120 | B137: 1909-12-10 | C137: R$7,977.60 | D137: R$83.34 | E137: R$10.00 | F137: R$93.34 | G137: R$26.86 | H137: R$66.48 | I137: R$7,950.74
A138: 121 | B138: 1910-01-10 | C138: R$7,950.74 | D138: R$83.34 | E138: R$10.00 | F138: R$93.34 | G138: R$27.08 | H138: R$66.26 | I138: R$7,923.66
A139: 122 | B139: 1910-02-10 | C139: R$7,923.66 | D139: R$83.34 | E139: R$10.00 | F139: R$93.34 | G139: R$27.31 | H139: R$66.03 | I139: R$7,896.35
A140: 123 | B140: 1910-03-10 | C140: R$7,896.35 | D140: R$83.34 | E140: R$10.00 | F140: R$93.34 | G140: R$27.53 | H140: R$65.80 | I140: R$7,868.82
A141: 124 | B141: 1910-04-10 | C141: R$7,868.82 | D141: R$83.34 | E141: R$10.00 | F141: R$93.34 | G141: R$27.76 | H141: R$65.57 | I141: R$7,841.06
A142: 125 | B142: 1910-05-10 | C142: R$7,841.06 | D142: R$83.34 | E142: R$10.00 | F142: R$93.34 | G142: R$28.00 | H142: R$65.34 | I142: R$7,813.06
A143: 126 | B143: 1910-06-10 | C143: R$7,813.06 | D143: R$83.34 | E143: R$10.00 | F143: R$93.34 | G143: R$28.23 | H143: R$65.11 | I143: R$7,784.83
A144: 127 | B144: 1910-07-10 | C144: R$7,784.83 | D144: R$83.34 | E144: R$10.00 | F144: R$93.34 | G144: R$28.46 | H144: R$64.87 | I144: R$7,756.37
A145: 128 | B145: 1910-08-10 | C145: R$7,756.37 | D145: R$83.34 | E145: R$10.00 | F145: R$93.34 | G145: R$28.70 | H145: R$64.64 | I145: R$7,727.67
A146: 129 | B146: 1910-09-10 | C146: R$7,727.67 | D146: =IF(Pay_Num<>"",Scheduled_Monthly_Payment,"") -> R$83.34 | E146: =IF(Pay_Num<>"",Scheduled_Extra_Payments,"") -> R$10.00 | F146: =IF(Pay_Num<>"",Sched_Pay+Extra_Pay,"") -> R$93.34 | G146: =IF(Pay_Num<>"",Total_Pay-Int,"") -> R$28.94 | H146: =IF(Pay_Num<>"",Beg_Bal*Interest_Rate/12,"") -> R$64.40 | I146: =IF(Pay_Num<>"",Beg_Bal-Princ,"") -> R$7,698.73
A147: =IF(Values_Entered,A146+1,"") -> 130 | B147: =IF(Pay_Num<>"",DATE(YEAR(B146),MONTH(B146)+1,DAY(B146)),"") -> 1910-10-10 | C147: =IF(Pay_Num<>"",I146,"") -> R$7,698.73 | D147: R$83.34 | E147: R$10.00 | F147: R$93.34 | G147: R$29.18 | H147: R$64.16 | I147: R$7,669.55
A148: 131 | B148: 1910-11-10 | C148: R$7,669.55 | D148: R$83.34 | E148: R$10.00 | F148: R$93.34 | G148: R$29.42 | H148: R$63.91 | I148: R$7,640.12
A149: 132 | B149: 1910-12-10 | C149: R$7,640.12 | D149: R$83.34 | E149: R$10.00 | F149: R$93.34 | G149: R$29.67 | H149: R$63.67 | I149: R$7,610.45
A150: 133 | B150: 1911-01-10 | C150: R$7,610.45 | D150: R$83.34 | E150: R$10.00 | F150: R$93.34 | G150: R$29.92 | H150: R$63.42 | I150: R$7,580.54
A151: 134 | B151: 1911-02-10 | C151: R$7,580.54 | D151: R$83.34 | E151: R$10.00 | F151: R$93.34 | G151: R$30.17 | H151: R$63.17 | I151: R$7,550.37
A152: 135 | B152: 1911-03-10 | C152: R$7,550.37 | D152: R$83.34 | E152: R$10.00 | F152: R$93.34 | G152: R$30.42 | H152: R$62.92 | I152: R$7,519.95
A153: 136 | B153: 1911-04-10 | C153: R$7,519.95 | D153: R$83.34 | E153: R$10.00 | F153: R$93.34 | G153: R$30.67 | H153: R$62.67 | I153: R$7,489.28
A154: 137 | B154: 1911-05-10 | C154: R$7,489.28 | D154: R$83.34 | E154: R$10.00 | F154: R$93.34 | G154: R$30.93 | H154: R$62.41 | I154: R$7,458.36
A155: 138 | B155: 1911-06-10 | C155: R$7,458.36 | D155: R$83.34 | E155: R$10.00 | F155: R$93.34 | G155: R$31.18 | H155: R$62.15 | I155: R$7,427.17
A156: 139 | B156: 1911-07-10 | C156: R$7,427.17 | D156: R$83.34 | E156: R$10.00 | F156: R$93.34 | G156: R$31.44 | H156: R$61.89 | I156: R$7,395.73
A157: 140 | B157: 1911-08-10 | C157: R$7,395.73 | D157: R$83.34 | E157: R$10.00 | F157: R$93.34 | G157: R$31.71 | H157: R$61.63 | I157: R$7,364.02
A158: 141 | B158: 1911-09-10 | C158: R$7,364.02 | D158: R$83.34 | E158: R$10.00 | F158: R$93.34 | G158: R$31.97 | H158: R$61.37 | I158: R$7,332.05
A159: 142 | B159: 1911-10-10 | C159: R$7,332.05 | D159: R$83.34 | E159: R$10.00 | F159: R$93.34 | G159: R$32.24 | H159: R$61.10 | I159: R$7,299.81
A160: 143 | B160: 1911-11-10 | C160: R$7,299.81 | D160: R$83.34 | E160: R$10.00 | F160: R$93.34 | G160: R$32.51 | H160: R$60.83 | I160: R$7,267.31
A161: 144 | B161: 1911-12-10 | C161: R$7,267.31 | D161: R$83.34 | E161: R$10.00 | F161: R$93.34 | G161: R$32.78 | H161: R$60.56 | I161: R$7,234.53
A162: 145 | B162: 1912-01-10 | C162: R$7,234.53 | D162: R$83.34 | E162: R$10.00 | F162: R$93.34 | G162: R$33.05 | H162: R$60.29 | I162: R$7,201.48
A163: 146 | B163: 1912-02-10 | C163: R$7,201.48 | D163: R$83.34 | E163: R$10.00 | F163: R$93.34 | G163: R$33.32 | H163: R$60.01 | I163: R$7,168.16
A164: 147 | B164: 1912-03-10 | C164: R$7,168.16 | D164: R$83.34 | E164: R$10.00 | F164: R$93.34 | G164: R$33.60 | H164: R$59.73 | I164: R$7,134.55
A165: 148 | B165: 1912-04-10 | C165: R$7,134.55 | D165: R$83.34 | E165: R$10.00 | F165: R$93.34 | G165: R$33.88 | H165: R$59.45 | I165: R$7,100.67
A166: 149 | B166: 1912-05-10 | C166: R$7,100.67 | D166: R$83.34 | E166: R$10.00 | F166: R$93.34 | G166: R$34.17 | H166: R$59.17 | I166: R$7,066.51
A167: 150 | B167: 1912-06-10 | C167: R$7,066.51 | D167: R$83.34 | E167: R$10.00 | F167: R$93.34 | G167: R$34.45 | H167: R$58.89 | I167: R$7,032.06
A168: 151 | B168: 1912-07-10 | C168: R$7,032.06 | D168: R$83.34 | E168: R$10.00 | F168: R$93.34 | G168: R$34.74 | H168: R$58.60 | I168: R$6,997.32
A169: 152 | B169: 1912-08-10 | C169: R$6,997.32 | D169: R$83.34 | E169: R$10.00 | F169: R$93.34 | G169: R$35.03 | H169: R$58.31 | I169: R$6,962.29
A170: 153 | B170: 1912-09-10 | C170: R$6,962.29 | D170: R$83.34 | E170: R$10.00 | F170: R$93.34 | G170: R$35.32 | H170: R$58.02 | I170: R$6,926.98
A171: 154 | B171: 1912-10-10 | C171: R$6,926.98 | D171: R$83.34 | E171: R$10.00 | F171: R$93.34 | G171: R$35.61 | H171: R$57.72 | I171: R$6,891.36
A172: 155 | B172: 1912-11-10 | C172: R$6,891.36 | D172: R$83.34 | E172: R$10.00 | F172: R$93.34 | G172: R$35.91 | H172: R$57.43 | I172: R$6,855.45
A173: 156 | B173: 1912-12-10 | C173: R$6,855.45 | D173: R$83.34 | E173: R$10.00 | F173: R$93.34 | G173: R$36.21 | H173: R$57.13 | I173: R$6,819.25
A174: 157 | B174: 1913-01-10 | C174: R$6,819.25 | D174: R$83.34 | E174: R$10.00 | F174: R$93.34 | G174: R$36.51 | H174: R$56.83 | I174: R$6,782.73
A175: 158 | B175: 1913-02-10 | C175: R$6,782.73 | D175: R$83.34 | E175: R$10.00 | F175: R$93.34 | G175: R$36.81 | H175: R$56.52 | I175: R$6,745.92
A176: 159 | B176: 1913-03-10 | C176: R$6,745.92 | D176: R$83.34 | E176: R$10.00 | F176: R$93.34 | G176: R$37.12 | H176: R$56.22 | I176: R$6,708.80
A177: 160 | B177: 1913-04-10 | C177: R$6,708.80 | D177: R$83.34 | E177: R$10.00 | F177: R$93.34 | G177: R$37.43 | H177: R$55.91 | I177: R$6,671.37
A178: 161 | B178: 1913-05-10 | C178: R$6,671.37 | D178: R$83.34 | E178: R$10.00 | F178: R$93.34 | G178: R$37.74 | H178: R$55.59 | I178: R$6,633.63
A179: 162 | B179: 1913-06-10 | C179: R$6,633.63 | D179: R$83.34 | E179: R$10.00 | F179: R$93.34 | G179: R$38.06 | H179: R$55.28 | I179: R$6,595.57
A180: 163 | B180: 1913-07-10 | C180: R$6,595.57 | D180: R$83.34 | E180: R$10.00 | F180: R$93.34 | G180: R$38.37 | H180: R$54.96 | I180: R$6,557.19
A181: 164 | B181: 1913-08-10 | C181: R$6,557.19 | D181: R$83.34 | E181: R$10.00 | F181: R$93.34 | G181: R$38.69 | H181: R$54.64 | I181: R$6,518.50
A182: 165 | B182: 1913-09-10 | C182: R$6,518.50 | D182: R$83.34 | E182: R$10.00 | F182: R$93.34 | G182: R$39.02 | H182: R$54.32 | I182: R$6,479.48
A183: 166 | B183: 1913-10-10 | C183: R$6,479.48 | D183: R$83.34 | E183: R$10.00 | F183: R$93.34 | G183: R$39.34 | H183: R$54.00 | I183: R$6,440.14
A184: 167 | B184: 1913-11-10 | C184: R$6,440.14 | D184: R$83.34 | E184: R$10.00 | F184: R$93.34 | G184: R$39.67 | H184: R$53.67 | I184: R$6,400.47
A185: 168 | B185: 1913-12-10 | C185: R$6,400.47 | D185: R$83.34 | E185: R$10.00 | F185: R$93.34 | G185: R$40.00 | H185: R$53.34 | I185: R$6,360.47
A186: 169 | B186: 1914-01-10 | C186: R$6,360.47 | D186: R$83.34 | E186: R$10.00 | F186: R$93.34 | G186: R$40.33 | H186: R$53.00 | I186: R$6,320.14
A187: 170 | B187: 1914-02-10 | C187: R$6,320.14 | D187: R$83.34 | E187: R$10.00 | F187: R$93.34 | G187: R$40.67 | H187: R$52.67 | I187: R$6,279.47
A188: 171 | B188: 1914-03-10 | C188: R$6,279.47 | D188: R$83.34 | E188: R$10.00 | F188: R$93.34 | G188: R$41.01 | H188: R$52.33 | I188: R$6,238.46
A189: 172 | B189: 1914-04-10 | C189: R$6,238.46 | D189: R$83.34 | E189: R$10.00 | F189: R$93.34 | G189: R$41.35 | H189: R$51.99 | I189: R$6,197.11
A190: 173 | B190: 1914-05-10 | C190: R$6,197.11 | D190: R$83.34 | E190: R$10.00 | F190: R$93.34 | G190: R$41.69 | H190: R$51.64 | I190: R$6,155.42
A191: 174 | B191: 1914-06-10 | C191: R$6,155.42 | D191: R$83.34 | E191: R$10.00 | F191: R$93.34 | G191: R$42.04 | H191: R$51.30 | I191: R$6,113.38
A192: 175 | B192: 1914-07-10 | C192: R$6,113.38 | D192: R$83.34 | E192: R$10.00 | F192: R$93.34 | G192: R$42.39 | H192: R$50.94 | I192: R$6,070.98
A193: 176 | B193: 1914-08-10 | C193: R$6,070.98 | D193: R$83.34 | E193: R$10.00 | F193: R$93.34 | G193: R$42.75 | H193: R$50.59 | I193: R$6,028.24
A194: 177 | B194: 1914-09-10 | C194: R$6,028.24 | D194: R$83.34 | E194: R$10.00 | F194: R$93.34 | G194: R$43.10 | H194: R$50.24 | I194: R$5,985.14
A195: 178 | B195: 1914-10-10 | C195: R$5,985.14 | D195: R$83.34 | E195: R$10.00 | F195: R$93.34 | G195: R$43.46 | H195: R$49.88 | I195: R$5,941.67
A196: 179 | B196: 1914-11-10 | C196: R$5,941.67 | D196: R$83.34 | E196: R$10.00 | F196: R$93.34 | G196: R$43.82 | H196: R$49.51 | I196: R$5,897.85
A197: 180 | B197: 1914-12-10 | C197: R$5,897.85 | D197: R$83.34 | E197: R$10.00 | F197: R$93.34 | G197: R$44.19 | H197: R$49.15 | I197: R$5,853.66
A198: 181 | B198: 1915-01-10 | C198: R$5,853.66 | D198: R$83.34 | E198: R$10.00 | F198: R$93.34 | G198: R$44.56 | H198: R$48.78 | I198: R$5,809.11
A199: 182 | B199: 1915-02-10 | C199: R$5,809.11 | D199: R$83.34 | E199: R$10.00 | F199: R$93.34 | G199: R$44.93 | H199: R$48.41 | I199: R$5,764.18
A200: 183 | B200: 1915-03-10 | C200: R$5,764.18 | D200: R$83.34 | E200: R$10.00 | F200: R$93.34 | G200: R$45.30 | H200: R$48.03 | I200: R$5,718.87
A201: 184 | B201: 1915-04-10 | C201: R$5,718.87 | D201: R$83.34 | E201: R$10.00 | F201: R$93.34 | G201: R$45.68 | H201: R$47.66 | I201: R$5,673.19
A202: 185 | B202: 1915-05-10 | C202: R$5,673.19 | D202: R$83.34 | E202: R$10.00 | F202: R$93.34 | G202: R$46.06 | H202: R$47.28 | I202: R$5,627.13
A203: 186 | B203: 1915-06-10 | C203: R$5,627.13 | D203: R$83.34 | E203: R$10.00 | F203: R$93.34 | G203: R$46.44 | H203: R$46.89 | I203: R$5,580.69
A204: 187 | B204: 1915-07-10 | C204: R$5,580.69 | D204: R$83.34 | E204: R$10.00 | F204: R$93.34 | G204: R$46.83 | H204: R$46.51 | I204: R$5,533.86
... 173 more rows
